bitfinex/quotes_BTCUSD_20240811
["timestamp","ask_amount","ask_price","bid_price","bid_amount"]
[1723381630738,0.17571606,60444.0,60443.0,0.115811]
[1723381630955,0.17571606,60444.0,60443.0,0.0347452]
[1723381631179,0.17571606,60444.0,60443.0,0.00753177]
[1723381631386,0.1648,60444.0,60437.0,0.231645]
[1723381631600,0.00942285,60440.0,60439.0,0.347457]
[1723381631906,0.03242285,60440.0,60439.0,0.74290992]
[1723381632136,0.03242285,60440.0,60439.0,0.75044615]
[1723381633391,0.023,60440.0,60439.0,0.75044615]
[1723381633572,0.00942285,60440.0,60439.0,0.75644615]
[1723381633813,0.03242285,60440.0,60439.0,0.75644615]
[1723381634429,0.03391606,60440.0,60439.0,0.01653623]
[1723381634631,0.03391606,60440.0,60439.0,0.16017385]
[1723381634817,0.03391606,60440.0,60439.0,0.04435485]
[1723381635250,0.03384911,60440.0,60439.0,0.04435485]
[1723381635638,0.03384911,60440.0,60439.0,0.15417385]
[1723381635836,0.02442626,60440.0,60439.0,0.16017385]
[1723381636041,0.347451,60440.0,60439.0,0.04435485]
[1723381636252,0.257617,60440.0,60439.0,0.01653623]
[1723381636424,0.720885,60440.0,60439.0,0.01653623]
[1723381636643,0.96343506,60440.0,60439.0,0.006]
[1723381636817,0.952519,60440.0,60439.0,0.009]
[1723381637027,1.21633392,60440.0,60439.0,0.006]
[1723381637254,0.60016706,60440.0,60439.0,0.006]
[1723381637447,0.69108427,60440.0,60439.0,0.006]
[1723381637626,0.6910717,60440.0,60439.0,0.006]
[1723381637811,0.08069321,60430.0,60428.0,0.115839]
[1723381638012,0.01091606,60430.0,60429.0,0.1274219]
[1723381638263,0.03242285,60430.0,60429.0,0.53048477]
[1723381638491,0.03391606,60430.0,60429.0,0.53048477]
[1723381638879,0.03391606,60430.0,60429.0,0.29880877]
[1723381639137,0.02443134,60430.0,60429.0,0.29880877]
[1723381639374,0.06409321,60430.0,60429.0,0.01915585]
[1723381639575,0.25912921,60430.0,60429.0,0.01915585]
[1723381639684,0.25912921,60430.0,60429.0,0.0115839]
[1723381639891,0.1418,60430.0,60429.0,0.0115839]
[1723381640094,0.01091606,60423.0,60422.0,0.0009141]
[1723381640293,0.195049,60423.0,60422.0,0.0009141]
[1723381640534,0.426748,60423.0,60422.0,0.0009141]
[1723381640740,0.721047,60423.0,60422.0,0.0009141]
[1723381641161,0.721047,60423.0,60422.0,0.0089141]
[1723381641162,0.745047,60423.0,60422.0,0.0089141]
[1723381641571,0.75596306,60423.0,60422.0,0.0089141]
[1723381642081,0.75696306,60423.0,60422.0,0.0189141]
[1723381642473,0.75596306,60423.0,60422.0,0.0089141]
[1723381642827,0.75596306,60423.0,60422.0,0.0079141]
[1723381643029,0.17671606,60423.0,60422.0,0.0079141]
[1723381643230,0.11262285,60423.0,60422.0,0.37184521]
[1723381643433,0.11262285,60423.0,60422.0,1.00669953]
[1723381643434,0.01042285,60423.0,60422.0,1.00669953]
[1723381643639,0.01042285,60423.0,60422.0,1.08719953]
[1723381643640,0.001,60423.0,60422.0,1.08719953]
[1723381643839,0.001,60423.0,60422.0,1.32890253]
[1723381644067,0.001,60423.0,60422.0,1.40537968]
[1723381644308,0.001,60423.0,60422.0,1.44828958]
[1723381644527,0.001,60423.0,60422.0,1.44879637]
[1723381644739,0.001,60423.0,60422.0,1.54879637]
[1723381644950,0.00942285,60438.0,60437.0,0.579115]
[1723381645381,0.01174706,60440.0,60439.0,0.347457]
[1723381645612,0.00232421,60440.0,60439.0,0.347457]
[1723381645776,0.00232421,60440.0,60439.0,0.35507144]
[1723381645979,0.000831,60440.0,60439.0,0.35507144]
[1723381646730,0.01025385,60440.0,60439.0,0.58670944]
[1723381646963,0.03325385,60440.0,60439.0,0.58670944]
[1723381647157,0.03625385,60440.0,60439.0,0.58670944]
[1723381647600,0.03625385,60440.0,60439.0,0.75052436]
[1723381648477,0.11245385,60440.0,60439.0,0.35507144]
[1723381648681,0.103031,60440.0,60439.0,0.00761444]
[1723381648884,0.103031,60440.0,60439.0,0.12343344]
[1723381649023,0.103031,60440.0,60439.0,0.115819]
[1723381649263,0.103031,60440.0,60439.0,0.35507144]
[1723381649673,0.11394706,60440.0,60439.0,0.00761444]
[1723381649896,0.16822421,60440.0,60436.0,0.115823]
[1723381650105,0.00149321,60437.0,60436.0,0.115823]
[1723381650528,0.023,60439.0,60435.0,0.115826]
[1723381650747,0.138819,60439.0,60436.0,0.0347486]
[1723381650958,0.12673906,60437.0,60436.0,0.0347486]
[1723381651153,0.00942285,60425.0,60424.0,0.231693]
[1723381651373,0.00149321,60429.0,60425.0,0.115844]
[1723381651374,0.115838,60429.0,60425.0,0.115844]
[1723381651568,0.023,60428.0,60422.0,0.0009141]
[1723381651777,0.09126931,60423.0,60422.0,0.1167651]
[1723381651978,0.11426931,60423.0,60422.0,0.1167651]
[1723381652183,0.11426931,60423.0,60422.0,0.3484681]
[1723381652398,0.11576252,60423.0,60422.0,0.0009141]
[1723381652639,0.30781152,60423.0,60422.0,0.0009141]
[1723381652816,0.27538867,60423.0,60422.0,0.0099141]
[1723381653271,0.50559446,60423.0,60422.0,0.0099141]
[1723381653533,2.05022952,60423.0,60422.0,0.0099141]
[1723381653802,2.11809084,60423.0,60422.0,0.0099141]
[1723381654032,2.11809084,60423.0,60422.0,0.0139141]
[1723381654254,1.81853052,60423.0,60422.0,0.0049141]
[1723381654493,1.88753222,60423.0,60422.0,0.0119141]
[1723381655015,1.88653289,60423.0,60422.0,0.0049141]
[1723381655236,1.21628352,60423.0,60422.0,0.0049141]
[1723381655572,1.22728352,60423.0,60422.0,0.01799111]
[1723381655667,1.34313252,60423.0,60422.0,0.01799111]
[1723381655936,1.79553052,60423.0,60422.0,0.01299111]
[1723381656173,1.83253052,60423.0,60422.0,0.0019141]
[1723381656437,1.82953052,60423.0,60422.0,0.0019141]
[1723381656918,1.60783152,60423.0,60422.0,0.0029141]
[1723381657629,1.59783152,60423.0,60422.0,0.0019141]
[1723381658109,1.58683152,60423.0,60422.0,0.0009141]
[1723381658341,1.58683152,60423.0,60422.0,0.0019141]
[1723381658342,1.59283152,60423.0,60422.0,0.0019141]
[1723381658580,1.33813252,60423.0,60422.0,0.0019141]
[1723381658815,1.58340867,60423.0,60422.0,0.0019141]
[1723381659047,1.58340867,60423.0,60422.0,0.0029141]
[1723381659048,2.05680667,60423.0,60422.0,0.0029141]
[1723381659288,2.04680667,60423.0,60422.0,0.0019141]
[1723381659743,2.05680667,60423.0,60422.0,0.0029141]
[1723381659968,2.05680667,60423.0,60422.0,0.0009141]
[1723381659969,2.04080667,60423.0,60422.0,0.0009141]
[1723381660109,2.05080667,60423.0,60422.0,0.0019141]
[1723381660738,2.04931346,60423.0,60422.0,0.0019141]
[1723381661369,2.05531346,60423.0,60422.0,0.0029141]
[1723381663202,2.05680667,60423.0,60422.0,0.0029141]
[1723381663979,2.05531346,60423.0,60422.0,0.0029141]
[1723381664455,2.21912838,60423.0,60422.0,0.0029141]
[1723381664671,2.38710471,60423.0,60422.0,0.0029141]
[1723381664899,2.31912838,60423.0,60422.0,0.0029141]
[1723381665152,2.39800175,60423.0,60422.0,0.0029141]
[1723381665641,2.0024886,60423.0,60422.0,0.0029141]
[1723381667187,2.2341876,60423.0,60422.0,0.0029141]
[1723381669452,2.16622952,60423.0,60422.0,0.0029141]
[1723381669678,2.23398243,60423.0,60422.0,0.0029141]
[1723381669903,1.93453052,60423.0,60422.0,0.0029141]
[1723381670133,2.00224873,60423.0,60422.0,0.0029141]
[1723381672095,2.00218891,60423.0,60422.0,0.0029141]
[1723381672554,2.23388791,60423.0,60422.0,0.0029141]
[1723381672770,2.22446506,60423.0,60422.0,0.0029141]
[1723381673257,2.20388791,60423.0,60422.0,0.0029141]
[1723381673488,2.19446506,60423.0,60422.0,0.0029141]
[1723381673989,2.20388791,60423.0,60422.0,0.0029141]
[1723381675440,2.20385884,60423.0,60422.0,0.0029141]
[1723381675677,0.00942285,60406.0,60405.0,0.0009141]
[1723381675923,0.425447,60406.0,60405.0,0.0009141]
[1723381676143,0.20459806,60406.0,60405.0,0.0009141]
[1723381676393,0.19517521,60406.0,60405.0,0.0009141]
[1723381676618,0.193682,60406.0,60405.0,0.0009141]
[1723381677882,0.08871606,60406.0,60405.0,0.0009141]
[1723381678038,0.01091606,60406.0,60405.0,0.04843337]
[1723381678562,0.231727,60416.0,60405.0,0.04843337]
[1723381678563,0.00942285,60407.0,60406.0,0.115882]
[1723381678938,0.00942285,60407.0,60406.0,0.12371444]
[1723381678939,0.00913677,60407.0,60406.0,0.12371444]
[1723381679568,0.00913677,60407.0,60406.0,0.19881444]
[1723381679777,0.00149321,60410.0,60407.0,0.11588]
[1723381679976,0.00913677,60408.0,60407.0,0.11588]
[1723381680378,0.08184646,60412.0,60405.0,0.0009141]
[1723381680585,0.115877,60409.0,60405.0,0.1167981]
[1723381680742,0.01062998,60406.0,60405.0,0.1167981]
[1723381681146,0.00149321,60406.0,60405.0,0.1197981]
[1723381681363,0.01062998,60406.0,60405.0,0.39606021]
[1723381681535,0.00149321,60406.0,60405.0,0.27717621]
[1723381681772,0.115874,60410.0,60405.0,0.04540821]
[1723381681973,0.115872,60411.0,60407.0,0.11588]
[1723381682150,0.002,60408.0,60406.0,0.115881]
[1723381682384,0.01062998,60408.0,60407.0,0.01875791]
[1723381682597,0.115877,60409.0,60405.0,0.1167961]
[1723381683415,0.002,60408.0,60405.0,0.1167961]
[1723381683546,0.115877,60409.0,60405.0,0.1167961]
[1723381683745,0.231755,60409.0,60405.0,0.0009141]
[1723381684103,0.115881,60407.0,60405.0,0.0009141]
[1723381685418,0.0778,60408.0,60405.0,0.0009141]
[1723381685419,0.115882,60406.0,60405.0,0.0009141]
[1723381685831,0.0778,60408.0,60405.0,0.0009141]
[1723381686082,0.115881,60407.0,60405.0,0.0009141]
[1723381686268,0.115882,60406.0,60405.0,0.0029141]
[1723381687236,0.347647,60406.0,60405.0,0.0029141]
[1723381687487,0.415384,60406.0,60405.0,0.0009141]
[1723381687988,0.415384,60406.0,60405.0,0.0019141]
[1723381688222,0.183619,60406.0,60405.0,0.0019141]
[1723381688483,0.183619,60406.0,60405.0,0.0009141]
[1723381688756,0.01062998,60406.0,60405.0,0.0039141]
[1723381689221,0.11588,60407.0,60405.0,0.01282923]
[1723381689468,0.01062998,60406.0,60405.0,0.01282923]
[1723381689706,0.115882,60406.0,60405.0,0.01282923]
[1723381689946,0.12651198,60406.0,60405.0,0.01282923]
[1723381690203,0.12651198,60406.0,60405.0,0.0039141]
[1723381690204,0.11737521,60406.0,60405.0,0.0039141]
[1723381690464,0.115882,60406.0,60405.0,0.0039141]
[1723381690668,0.11737521,60406.0,60405.0,0.04089991]
[1723381690981,0.115882,60406.0,60405.0,0.05031322]
[1723381692649,0.115882,60406.0,60405.0,0.01032741]
[1723381692888,0.193482,60406.0,60405.0,0.01032741]
[1723381693123,0.193482,60406.0,60405.0,0.0009141]
[1723381693367,0.193482,60406.0,60405.0,0.0029141]
[1723381693885,0.193482,60406.0,60405.0,0.0009141]
[1723381694168,0.193482,60406.0,60405.0,0.0039141]
[1723381694169,2.02383605,60406.0,60405.0,0.0039141]
[1723381694469,2.26132329,60406.0,60405.0,0.0039141]
[1723381694677,2.36610563,60406.0,60405.0,0.0039141]
[1723381694914,2.35610563,60406.0,60405.0,0.0039141]
[1723381695170,2.12434063,60406.0,60405.0,0.0039141]
[1723381695431,1.90270103,60406.0,60405.0,0.0039141]
[1723381695663,1.83686298,60406.0,60405.0,0.0039141]
[1723381695901,1.902633,60406.0,60405.0,0.0009141]
[1723381696189,1.73486298,60406.0,60405.0,0.0019141]
[1723381696445,1.94912594,60406.0,60405.0,0.0019141]
[1723381696688,1.69436094,60406.0,60405.0,0.0009141]
[1723381696931,1.19141645,60406.0,60405.0,0.0019141]
[1723381697171,1.19290966,60406.0,60405.0,0.0019141]
[1723381697658,1.42467466,60406.0,60405.0,0.0019141]
[1723381699189,0.4407682,60406.0,60405.0,0.0019141]
[1723381699491,0.4303647,60406.0,60405.0,0.0019141]
[1723381699738,0.015,60406.0,60405.0,0.82264902]
[1723381700047,0.02385131,60406.0,60405.0,0.65648102]
[1723381700248,0.02385131,60406.0,60405.0,0.66594602]
[1723381700521,0.01785131,60406.0,60405.0,0.66494602]
[1723381700762,0.01485131,60406.0,60405.0,0.66594602]
[1723381701510,0.01485131,60406.0,60405.0,0.89771402]
[1723381701767,0.006,60406.0,60405.0,0.89771402]
[1723381702008,0.01685131,60406.0,60405.0,0.89771402]
[1723381702742,0.002,60406.0,60405.0,0.66494602]
[1723381703530,0.002,60406.0,60405.0,0.52184602]
[1723381704243,0.01085131,60406.0,60405.0,0.52184602]
[1723381704713,0.002,60406.0,60405.0,0.52184602]
[1723381704951,0.01085131,60406.0,60405.0,0.52184602]
[1723381705191,0.000831,60407.0,60406.0,0.115882]
[1723381705675,0.000831,60407.0,60406.0,0.12534588]
[1723381706153,0.140431,60407.0,60406.0,0.00946388]
[1723381706448,0.488072,60407.0,60406.0,0.00946388]
[1723381706689,0.5559147,60407.0,60406.0,0.00946388]
[1723381706928,0.7876757,60407.0,60406.0,0.00946388]
[1723381707174,0.115882,60406.0,60405.0,0.0009141]
[1723381707415,0.26557116,60406.0,60405.0,0.0009141]
[1723381707652,0.27591568,60406.0,60405.0,0.01036235]
[1723381707886,0.49882937,60406.0,60405.0,0.0009141]
[1723381708133,0.49733616,60406.0,60405.0,0.0009141]
[1723381708632,0.49741789,60406.0,60405.0,0.0009141]
[1723381709102,0.49941789,60406.0,60405.0,0.0009141]
[1723381709825,0.73118289,60406.0,60405.0,0.0009141]
[1723381710100,0.76452741,60406.0,60405.0,0.01136235]
[1723381710323,0.76452741,60406.0,60405.0,0.0009141]
[1723381710796,0.7566761,60406.0,60405.0,0.0009141]
[1723381711027,1.51738341,60406.0,60405.0,0.0009141]
[1723381711534,1.51538341,60406.0,60405.0,0.0009141]
[1723381711771,1.18277195,60406.0,60405.0,0.0009141]
[1723381712279,1.18278037,60406.0,60405.0,0.01442171]
[1723381712548,1.18278037,60406.0,60405.0,0.02386996]
[1723381712822,1.18278037,60406.0,60405.0,0.37152196]
[1723381712823,0.99747231,60406.0,60405.0,0.37152196]
[1723381713321,0.99747231,60406.0,60405.0,0.60328996]
[1723381713565,0.99647231,60406.0,60405.0,0.60328996]
[1723381714070,0.988621,60406.0,60405.0,0.76710488]
[1723381714297,0.988621,60406.0,60405.0,1.13195541]
[1723381714562,0.987621,60406.0,60405.0,1.13195541]
[1723381714992,0.000831,60407.0,60405.0,1.13195541]
[1723381714993,0.000831,60407.0,60406.0,0.901377]
[1723381715203,0.000831,60407.0,60406.0,1.11807445]
[1723381715420,0.000831,60407.0,60406.0,1.12749046]
[1723381715626,0.00054508,60407.0,60406.0,0.64171054]
[1723381716035,0.00939639,60407.0,60406.0,0.64171054]
[1723381716256,0.00939639,60407.0,60406.0,0.58882801]
[1723381716468,0.00939639,60407.0,60406.0,0.64169414]
[1723381716737,0.00254508,60407.0,60406.0,0.81750906]
[1723381716938,0.00154508,60407.0,60406.0,0.81450906]
[1723381717330,0.00054508,60407.0,60406.0,0.80550906]
[1723381717540,0.00154508,60407.0,60406.0,0.81350906]
[1723381717756,0.01039639,60407.0,60406.0,0.81350906]
[1723381718184,0.00254508,60407.0,60406.0,0.81650906]
[1723381719328,0.00238596,60407.0,60406.0,0.81650906]
[1723381719513,0.00238596,60407.0,60406.0,1.04827406]
[1723381720264,0.00238596,60407.0,60406.0,0.76364293]
[1723381720469,0.00238596,60407.0,60406.0,0.81703223]
[1723381720870,0.00238596,60407.0,60406.0,0.59982801]
[1723381721122,0.08068596,60407.0,60406.0,0.36806301]
[1723381721323,0.08068596,60407.0,60406.0,0.13629801]
[1723381722139,0.3256543,60407.0,60406.0,0.02041601]
[1723381722455,0.25786596,60407.0,60406.0,0.05822922]
[1723381722663,0.14198596,60407.0,60406.0,0.05822922]
[1723381722865,0.22383242,60407.0,60406.0,0.05822922]
[1723381723943,0.22383242,60407.0,60406.0,0.40587622]
[1723381724159,0.00238596,60407.0,60406.0,0.40587622]
[1723381725104,0.00238596,60407.0,60406.0,0.17411122]
[1723381725582,0.08113785,60407.0,60406.0,0.05822922]
[1723381725811,0.08113785,60407.0,60406.0,0.02041601]
[1723381725812,0.26211785,60407.0,60406.0,0.02041601]
[1723381726028,0.51687885,60407.0,60406.0,0.02041601]
[1723381726262,0.17073106,60407.0,60406.0,0.011]
[1723381726472,0.15558237,60407.0,60406.0,0.04487081]
[1723381726688,0.15458237,60407.0,60406.0,0.04609102]
[1723381726985,0.27246237,60407.0,60406.0,0.001]
[1723381727173,0.51637206,60407.0,60406.0,0.001]
[1723381727357,0.115882,60406.0,60405.0,0.0009141]
[1723381727576,0.19772846,60406.0,60405.0,0.0009141]
[1723381727733,0.19772846,60406.0,60405.0,0.01013816]
[1723381727931,0.09069777,60406.0,60405.0,0.01013816]
[1723381728343,0.01034452,60406.0,60405.0,0.01013816]
[1723381728553,0.12622652,60406.0,60405.0,0.03615708]
[1723381729559,0.01034452,60406.0,60405.0,0.03815708]
[1723381729777,0.01134452,60406.0,60405.0,0.03815708]
[1723381729993,0.00249321,60406.0,60405.0,0.03815708]
[1723381730205,0.11837521,60406.0,60405.0,0.03815708]
[1723381730418,0.001,60406.0,60405.0,0.03815708]
[1723381731078,0.19872846,60406.0,60405.0,0.03815708]
[1723381731715,1.18234946,60406.0,60405.0,0.03815708]
[1723381731980,1.42445898,60406.0,60405.0,0.03815708]
[1723381732214,1.51750767,60406.0,60405.0,0.0029141]
[1723381732648,1.51601446,60406.0,60405.0,0.0029141]
[1723381733912,1.086521,60406.0,60405.0,0.0029141]
[1723381734112,1.07237231,60406.0,60405.0,0.1187981]
[1723381734317,1.07237231,60406.0,60405.0,0.12804054]
[1723381734725,1.07237231,60406.0,60405.0,0.16885009]
[1723381735149,0.99347231,60406.0,60405.0,0.16885009]
[1723381735805,0.99347231,60406.0,60405.0,0.40061809]
[1723381736359,0.99347231,60406.0,60405.0,0.63238609]
[1723381736767,0.99347231,60406.0,60405.0,0.40061809]
[1723381737662,0.00985131,60406.0,60405.0,0.40061809]
[1723381739198,0.00973619,60406.0,60405.0,0.40061809]
[1723381739403,0.00973619,60406.0,60405.0,0.63238609]
[1723381739616,0.00973619,60406.0,60405.0,0.40061809]
[1723381744580,0.0112294,60406.0,60405.0,0.16885009]
[1723381744817,0.00088488,60406.0,60405.0,0.16885009]
[1723381745424,0.00973619,60406.0,60405.0,0.16885009]
[1723381745632,0.00973619,60406.0,60405.0,0.63238609]
[1723381745861,0.00973619,60406.0,60405.0,0.47871809]
[1723381746067,0.00088488,60406.0,60405.0,0.93580101]
[1723381746511,0.00088488,60406.0,60405.0,0.98915211]
[1723381747271,0.00023785,60407.0,60406.0,0.347647]
[1723381747506,0.00023785,60407.0,60406.0,0.81880117]
[1723381747727,0.00023785,60407.0,60406.0,0.76566939]
[1723381747941,0.00023785,60407.0,60406.0,0.77489794]
[1723381748393,0.00023785,60407.0,60406.0,0.82784934]
[1723381749260,0.09193562,60407.0,60406.0,0.60308434]
[1723381749466,0.08308431,60407.0,60406.0,0.60308434]
[1723381749689,0.17592883,60407.0,60406.0,0.03867102]
[1723381749918,0.16807752,60407.0,60406.0,0.04167102]
[1723381750110,0.16658431,60407.0,60406.0,0.03244247]
[1723381750313,0.16658431,60407.0,60406.0,0.04167102]
[1723381750752,0.16658431,60407.0,60406.0,0.15755302]
[1723381751234,0.08408431,60407.0,60406.0,0.15755302]
[1723381751686,0.08408431,60407.0,60406.0,0.38931802]
[1723381752148,0.08529293,60407.0,60406.0,0.38931802]
[1723381752370,0.09414424,60407.0,60406.0,0.15755302]
[1723381752589,0.08379972,60407.0,60406.0,0.15755302]
[1723381753415,0.08379972,60407.0,60406.0,0.04167102]
[1723381754472,0.57924072,60407.0,60406.0,0.04167102]
[1723381754680,0.87881673,60407.0,60406.0,0.01922855]
[1723381754892,0.87881673,60407.0,60406.0,0.01]
[1723381755502,1.86243773,60407.0,60406.0,0.01]
[1723381755720,1.88543773,60407.0,60406.0,0.01]
[1723381756180,2.02291974,60407.0,60406.0,0.01]
[1723381756406,2.09419873,60407.0,60406.0,0.01]
[1723381756632,1.86243773,60407.0,60406.0,0.01]
[1723381757075,1.64102125,60407.0,60406.0,0.01]
[1723381757340,1.63216994,60407.0,60406.0,0.01]
[1723381757539,1.86393094,60407.0,60406.0,0.01]
[1723381757897,1.87278225,60407.0,60406.0,0.01]
[1723381758115,1.86243773,60407.0,60406.0,0.01]
[1723381758320,1.85243773,60407.0,60406.0,0.01]
[1723381758951,2.03918161,60407.0,60406.0,0.01]
[1723381759173,2.03910809,60407.0,60406.0,0.01]
[1723381759593,1.8523646,60407.0,60406.0,0.01]
[1723381759806,1.90162243,60407.0,60406.0,0.01]
[1723381760017,2.03910847,60407.0,60406.0,0.01]
[1723381760223,1.90162243,60407.0,60406.0,0.01]
[1723381760664,1.8523646,60407.0,60406.0,0.01]
[1723381760886,2.03910897,60407.0,60406.0,0.01]
[1723381761782,2.04945349,60407.0,60406.0,0.01]
[1723381762007,2.03910897,60407.0,60406.0,0.01]
[1723381762234,1.91196695,60407.0,60406.0,0.01]
[1723381762520,2.21447846,60407.0,60406.0,0.01]
[1723381762730,2.12318224,60407.0,60406.0,0.01]
[1723381762960,2.19706898,60407.0,60406.0,0.01]
[1723381763174,2.42780453,60407.0,60406.0,0.007]
[1723381763404,2.41895322,60407.0,60406.0,0.007]
[1723381763625,2.18919206,60407.0,60406.0,0.0079141]
[1723381763900,2.18769885,60407.0,60406.0,0.0009141]
[1723381764135,2.41194713,60407.0,60406.0,0.0019141]
[1723381764399,2.45699766,60407.0,60406.0,0.0019141]
[1723381764636,2.82626145,60407.0,60406.0,0.0019141]
[1723381764872,2.89582371,60407.0,60406.0,0.0019141]
[1723381765108,2.91616823,60407.0,60406.0,0.0019141]
[1723381765351,3.01978075,60407.0,60406.0,0.0019141]
[1723381765586,0.83157452,60402.0,60400.0,0.009141]
[1723381765815,1.36119076,60402.0,60400.0,0.009141]
[1723381766067,1.36119076,60402.0,60380.0,0.009141]
[1723381766068,0.716807,60396.0,60380.0,0.009141]
[1723381766327,1.75624998,60396.0,60380.0,0.009141]
[1723381766554,2.30513,60396.0,60380.0,0.009141]
[1723381766789,1.08352552,60392.0,60380.0,0.009141]
[1723381767024,0.61993652,60387.0,60380.0,0.009141]
[1723381767260,1.78282547,60387.0,60380.0,0.009141]
[1723381767490,2.0144171,60387.0,60380.0,0.009141]
[1723381767720,2.2462541,60387.0,60380.0,0.009141]
[1723381767953,0.98915752,60381.0,60380.0,0.009141]
[1723381768218,0.98915752,60381.0,60375.0,0.007423]
[1723381768219,0.49546452,60376.0,60375.0,0.007423]
[1723381768454,1.29106466,60376.0,60375.0,0.007423]
[1723381768693,1.31406466,60376.0,60375.0,0.007423]
[1723381768942,1.32416539,60376.0,60375.0,0.007423]
[1723381769194,1.96322378,60376.0,60375.0,0.007423]
[1723381769424,1.96322378,60376.0,60371.0,0.0001]
[1723381769425,0.98927652,60372.0,60371.0,0.0001]
[1723381769640,1.6135888,60372.0,60371.0,0.0001]
[1723381769842,0.424405,60361.0,60360.0,0.00219725]
[1723381770049,1.50669101,60361.0,60360.0,0.00219725]
[1723381770319,1.16614411,60361.0,60360.0,0.00219725]
[1723381770526,1.39957432,60361.0,60360.0,0.00219725]
[1723381770764,1.51554232,60361.0,60360.0,0.00219725]
[1723381770970,1.83127932,60361.0,60360.0,0.00219725]
[1723381771174,1.83127932,60361.0,60360.0,0.00319725]
[1723381771175,2.05436501,60361.0,60360.0,0.00319725]
[1723381771395,1.83127932,60361.0,60360.0,0.00319725]
[1723381771619,2.22703124,60361.0,60360.0,0.001]
[1723381771839,2.22703124,60361.0,60360.0,0.006]
[1723381772065,1.99509424,60361.0,60360.0,0.006]
[1723381772702,2.21817993,60361.0,60360.0,0.006]
[1723381772944,2.22703124,60361.0,60360.0,0.006]
[1723381773384,2.22703124,60361.0,60353.0,0.00219725]
[1723381773385,0.89871852,60354.0,60353.0,0.00219725]
[1723381773594,0.78975452,60354.0,60353.0,0.00219725]
[1723381774233,0.30133331,60354.0,60353.0,0.00219725]
[1723381774446,0.01034452,60354.0,60353.0,0.00219725]
[1723381774647,0.12485231,60344.0,60343.0,0.00219725]
[1723381774861,0.12485231,60344.0,60335.0,0.91829761]
[1723381774862,0.20284252,60346.0,60345.0,0.00219725]
[1723381775066,0.20134831,60346.0,60345.0,0.00219725]
[1723381775273,0.12484831,60346.0,60345.0,0.00219725]
[1723381775475,0.115997,60346.0,60345.0,0.00219725]
[1723381775684,0.01034452,60346.0,60345.0,0.00219725]
[1723381775892,0.12634152,60346.0,60345.0,0.00219725]
[1723381776105,0.34948521,60346.0,60345.0,0.00219725]
[1723381776312,0.00149321,60346.0,60342.0,0.00219725]
[1723381776515,0.08184646,60350.0,60339.0,0.00219725]
[1723381776516,0.0765,60342.0,60339.0,0.00219725]
[1723381776722,0.14615131,60340.0,60338.0,0.00219725]
[1723381776946,0.59040952,60338.0,60337.0,0.00361145]
[1723381777154,0.45838352,60338.0,60337.0,0.00361145]
[1723381777567,0.24935752,60338.0,60337.0,0.00361145]
[1723381777778,0.24050621,60338.0,60337.0,0.00361145]
[1723381777980,0.00885131,60338.0,60337.0,0.00361145]
[1723381778210,0.12486431,60338.0,60337.0,0.00361145]
[1723381778427,0.12635752,60338.0,60337.0,0.00361145]
[1723381778839,0.38138352,60338.0,60337.0,0.00361145]
[1723381779039,0.03334452,60338.0,60337.0,0.00361145]
[1723381779459,0.03334452,60338.0,60337.0,0.0014142]
[1723381779460,0.85372444,60338.0,60337.0,0.0014142]
[1723381779661,0.45888352,60338.0,60337.0,0.00361145]
[1723381779873,0.20385752,60338.0,60337.0,0.00361145]
[1723381780079,0.20385752,60338.0,60337.0,0.00561145]
[1723381780280,0.42703221,60338.0,60337.0,0.00561145]
[1723381780486,0.68990952,60338.0,60337.0,0.00361145]
[1723381780688,0.22585752,60338.0,60337.0,0.00361145]
[1723381780891,0.45788352,60338.0,60337.0,0.00561145]
[1723381781095,0.45888352,60338.0,60337.0,0.00561145]
[1723381781725,0.45003221,60338.0,60337.0,0.00561145]
[1723381781931,0.45003221,60338.0,60337.0,0.0034142]
[1723381781932,0.680565,60338.0,60337.0,0.0034142]
[1723381782160,0.548539,60338.0,60337.0,0.0034142]
[1723381782411,0.780565,60338.0,60337.0,0.0034142]
[1723381782864,0.548539,60338.0,60337.0,0.0034142]
[1723381783156,0.32685752,60338.0,60337.0,0.00561145]
[1723381783388,0.31800621,60338.0,60337.0,0.0034142]
[1723381783625,0.48684221,60336.0,60335.0,0.60606061]
[1723381783863,0.96304338,60336.0,60335.0,0.60606061]
[1723381784094,0.67753998,60336.0,60335.0,0.60825786]
[1723381784333,0.63973998,60336.0,60335.0,0.60825786]
[1723381784566,0.63088867,60336.0,60335.0,0.60825786]
[1723381784800,0.30820698,60336.0,60335.0,0.60825786]
[1723381785055,0.31620698,60336.0,60335.0,0.60825786]
[1723381785753,0.54823998,60336.0,60335.0,0.60825786]
[1723381786000,0.53938867,60336.0,60335.0,0.60825786]
[1723381786223,0.31620698,60336.0,60335.0,0.60825786]
[1723381786453,0.20419098,60336.0,60335.0,0.60825786]
[1723381786682,0.13686731,60336.0,60335.0,0.60825786]
[1723381786916,0.14486731,60336.0,60335.0,0.60825786]
[1723381787140,0.14636052,60336.0,60335.0,0.60825786]
[1723381787370,0.12636052,60336.0,60335.0,0.60825786]
[1723381787633,0.36339352,60336.0,60335.0,0.60825786]
[1723381787849,0.44623998,60336.0,60335.0,0.60825786]
[1723381788091,0.09169777,60336.0,60335.0,0.60825786]
[1723381788333,0.20820698,60336.0,60335.0,0.60821786]
[1723381788580,0.20920698,60336.0,60335.0,0.60913196]
[1723381788789,0.00985131,60336.0,60335.0,0.60913196]
[1723381788997,0.001,60336.0,60335.0,0.70174996]
[1723381789189,0.00985131,60336.0,60335.0,0.84424996]
[1723381789501,0.01485131,60336.0,60335.0,0.72823196]
[1723381789719,0.232005,60344.0,60335.0,0.72823196]
[1723381789720,0.08184646,60364.0,60362.0,0.00219725]
[1723381789929,0.12481631,60363.0,60362.0,0.00219725]
[1723381790158,0.115965,60363.0,60362.0,0.00219725]
[1723381790398,0.08009321,60365.0,60364.0,0.00219725]
[1723381790628,0.01034452,60365.0,60364.0,0.00219725]
[1723381791321,0.00885131,60365.0,60364.0,0.11816025]
[1723381791545,0.01034452,60367.0,60366.0,0.00219725]
[1723381791773,0.115956,60368.0,60367.0,0.00219725]
[1723381792025,0.35821052,60368.0,60367.0,0.00219725]
[1723381792252,0.35821052,60368.0,60357.0,0.00219725]
[1723381792253,0.00885131,60358.0,60357.0,0.00219725]
[1723381792492,0.09069777,60358.0,60357.0,0.11817325]
[1723381792713,0.231907,60369.0,60357.0,0.11817325]
[1723381792714,0.00885131,60361.0,60360.0,0.35010825]
[1723381792944,0.00885131,60361.0,60360.0,0.43050825]
[1723381793177,0.00885131,60361.0,60360.0,0.19856725]
[1723381793422,0.00885131,60361.0,60360.0,0.11816725]
[1723381793661,0.00885131,60361.0,60360.0,0.35010825]
[1723381793924,0.00885131,60361.0,60360.0,0.58204925]
[1723381794395,0.00885131,60361.0,60360.0,0.35010825]